fUSD/lending_fUSD_20250209
["ID","MTS","AMOUNT","RATE_DAILY","PERIOD"]
[352422697,1739094640305,-623.56789249,0.00010395,2]
[352422698,1739094640315,-500.61945609,0.00010395,2]
[352422699,1739094640324,-501.22184645,0.00010395,2]
[352422700,1739094640334,-500.0,0.00010395,2]
[352422701,1739094640343,-500.0,0.00010395,2]
[352422702,1739094640352,-500.78367595,0.00010395,2]
[352422703,1739094640361,-500.0,0.00010395,2]
[352422704,1739094640371,-500.0,0.00010395,2]
[352422705,1739094640380,-500.0,0.00010395,2]
[352422706,1739094640389,-1370.07,0.00010395,2]
[352422707,1739094640399,-500.0,0.00010395,2]
[352422708,1739094640408,-500.0,0.00010395,2]
[352422709,1739094640418,-155.059478,0.00010395,2]
[352422710,1739094640428,-500.0,0.00010395,2]
[352422711,1739094640438,-500.0,0.00010395,2]
[352422712,1739094640448,-500.0,0.00010395,2]
[352422713,1739094640457,-500.0,0.00010395,2]
[352422714,1739094640466,-672.03,0.00010395,2]
[352422715,1739094640475,-1388.38,0.00010395,2]
[352422716,1739094640485,-500.0,0.00010395,2]
[352422717,1739094640495,-500.0,0.00010395,2]
[352422718,1739094640505,-195.090942,0.00010395,2]
[352422719,1739094640514,-501.77827582,0.00010395,2]
[352422720,1739094640527,-500.0,0.00010395,2]
[352422721,1739094640537,-500.0,0.00010395,2]
[352422722,1739094640547,-605.57,0.00010395,2]
[352422723,1739094640556,-500.0,0.00010395,2]
[352422724,1739094640566,-500.0,0.00010395,2]
[352422725,1739094640575,-500.0,0.00010395,2]
[352422726,1739094640585,-500.0,0.00010395,2]
[352422727,1739094640594,-500.0,0.00010395,2]
[352422728,1739094640605,-500.0,0.00010395,2]
[352422729,1739094640615,-500.0,0.00010395,2]
[352422730,1739094640624,-500.0,0.00010395,2]
[352422731,1739094640859,-500.0,0.00010395,2]
[352422732,1739094640869,-501.28782214,0.00010395,2]
[352422733,1739094640879,-500.530116,0.00010395,2]
[352422734,1739094640889,-500.0,0.00010395,2]
[352422735,1739094640899,-1054.37,0.00010395,2]
[352422736,1739094640908,-500.0,0.00010395,2]
[352422737,1739094640917,-500.0,0.00010395,2]
[352422738,1739094640927,-500.0,0.00010395,2]
[352422739,1739094640936,-948.26,0.00010395,2]
[352422740,1739094640945,-500.0,0.00010395,2]
[352422741,1739094640954,-500.0,0.00010395,2]
[352422742,1739094640964,-940.68,0.00010395,2]
[352422743,1739094640974,-500.0,0.00010395,2]
[352422744,1739094640985,-500.0,0.00010395,2]
[352422745,1739094641004,-504.13137642,0.00010395,2]
[352422746,1739094641014,-500.0,0.00010395,2]
[352422747,1739094641024,-500.0,0.00010395,2]
[352422748,1739094641033,-500.0,0.00010395,2]
[352422749,1739094641043,-798.25,0.00010395,2]
[352422750,1739094641052,-603.17185966,0.00010395,2]
[352422751,1739094641062,-500.0,0.00010395,2]
[352422752,1739094641071,-501.6908489,0.00010395,2]
[352422753,1739094641081,-500.0,0.00010395,2]
[352422754,1739094641090,-500.0,0.00010395,2]
[352422755,1739094641100,-1203.42,0.00010395,2]
[352422756,1739094641110,-3396.83,0.00010395,2]
[352422757,1739094641120,-503.8204107,0.00010395,2]
[352422758,1739094641130,-501.75233911,0.00010395,2]
[352422759,1739094641140,-500.0,0.00010395,2]
[352422760,1739094641149,-500.0,0.00010395,2]
[352422761,1739094641159,-1288.98,0.00010395,2]
[352422762,1739094641168,-500.0,0.00010395,2]
[352422763,1739094641177,-1389.61,0.00010395,2]
[352422764,1739094641186,-500.0,0.00010395,2]
[352422765,1739094641198,-1316.88,0.00010395,2]
[352422766,1739094641207,-500.0,0.00010395,2]
[352422767,1739094641217,-500.0,0.00010395,2]
[352422768,1739094641227,-827.62,0.00010395,2]
[352422769,1739094641237,-500.0,0.00010395,2]
[352422770,1739094641247,-1433.46,0.00010395,2]
[352422771,1739094641258,-500.0,0.00010395,2]
[352422772,1739094641267,-63.13650464,0.00010395,2]
[352422773,1739094641282,-438.75027491,0.00010395,2]
[352422774,1739094641292,-500.0,0.00010395,2]
[352422775,1739094641306,-500.0,0.00010395,2]
[352422776,1739094641315,-304.55332509,0.00010395,2]
[352422777,1739094641341,-371.48667491,0.00010395,2]
[352422778,1739094641351,-501.03812812,0.00010395,2]
[352422779,1739094641361,-1551.77,0.00010395,2]
[352422780,1739094641370,-500.0,0.00010395,2]
[352422781,1739094641381,-2973.92707997,0.00010395,2]
[352422782,1739094641397,-764.52292003,0.00010395,2]
[352422783,1739094641407,-500.0,0.00010395,2]
[352422784,1739094641416,-500.0,0.00010395,2]
[352422785,1739094641426,-527.26,0.00010395,2]
[352422786,1739094641435,-500.0,0.00010395,2]
[352422787,1739094641444,-579.59,0.00010395,2]
[352422788,1739094641454,-502.14616378,0.00010395,2]
[352422789,1739094641464,-500.0,0.00010395,2]
[352422790,1739094641474,-500.0,0.00010395,2]
[352422791,1739094641484,-1314.31,0.00010395,2]
[352422792,1739094641493,-168.19355706,0.00010395,2]
[352422793,1739094641502,-500.68615643,0.00010395,2]
[352422794,1739094641511,-500.0,0.00010395,2]
[352422795,1739094641520,-500.0,0.00010395,2]
[352422796,1739094641533,-574.89,0.00010395,2]
[352422797,1739094641543,-934.37,0.00010395,2]
[352422798,1739094641552,-502.49664044,0.00010395,2]
[352422799,1739094641561,-502.69466534,0.00010395,2]
[352422800,1739094641571,-1664.28,0.00010395,2]
[352422801,1739094641580,-500.0,0.00010395,2]
[352422802,1739094641588,-955.6,0.00010395,2]
[352422803,1739094641598,-1214.87,0.00010395,2]
[352422804,1739094641607,-500.0,0.00010395,2]
[352422805,1739094641616,-500.0,0.00010395,2]
[352422806,1739094641627,-625.22632406,0.00010395,2]
[352422807,1739094641636,-500.0,0.00010395,2]
[352422808,1739094641645,-500.0,0.00010395,2]
[352422809,1739094641654,-500.0,0.00010395,2]
[352422810,1739094641663,-157.734459,0.00010395,2]
[352422811,1739094641672,-821.77,0.00010395,2]
[352422812,1739094641681,-2323.75,0.00010395,2]
[352422813,1739094641691,-798.41,0.00010395,2]
[352422814,1739094641700,-500.0,0.00010395,2]
[352422815,1739094641709,-500.0,0.00010395,2]
[352422816,1739094641719,-500.0,0.00010395,2]
[352422817,1739094641728,-500.93870448,0.00010395,2]
[352422818,1739094641737,-500.0,0.00010395,2]
[352422819,1739094641747,-636.8,0.00010395,2]
[352422820,1739094641756,-500.0,0.00010395,2]
[352422821,1739094641765,-500.0,0.00010395,2]
[352422822,1739094641774,-557.43,0.00010395,2]
[352422823,1739094641783,-1039.36,0.00010395,2]
[352422824,1739094641792,-501.93235363,0.00010395,2]
[352422825,1739094641802,-882.11,0.00010395,2]
[352422826,1739094641811,-500.0,0.00010395,2]
[352422827,1739094641820,-500.0,0.00010395,2]
[352422828,1739094641830,-1089.21,0.00010395,2]
[352422829,1739094641839,-1078.39,0.00010395,2]
[352422830,1739094641848,-500.0,0.00010395,2]
[352422831,1739094641858,-500.0,0.00010395,2]
[352422832,1739094641867,-1049.18,0.00010395,2]
[352422833,1739094641876,-500.0,0.00010395,2]
[352422834,1739094641886,-500.0,0.00010395,2]
[352422835,1739094641895,-500.0,0.00010395,2]
[352422836,1739094641905,-1108.75,0.00010395,2]
[352422837,1739094641914,-1069.42,0.00010395,2]
[352422838,1739094641924,-500.0,0.00010395,2]
[352422839,1739094641933,-500.0,0.00010395,2]
[352422840,1739094641943,-500.0,0.00010395,2]
[352422841,1739094641952,-989.92,0.00010395,2]
[352422842,1739094641962,-500.0,0.00010395,2]
[352422843,1739094641972,-796.32,0.00010395,2]
[352422844,1739094641981,-1039.64,0.00010395,2]
[352422845,1739094641991,-291.89399481,0.00010395,2]
[352422846,1739094642001,-500.0,0.00010395,2]
[352422847,1739094642010,-500.0,0.00010395,2]
[352422848,1739094642020,-157.734457,0.00010395,2]
[352422849,1739094642033,-500.0,0.00010395,2]
[352422850,1739094642043,-500.0,0.00010395,2]
[352422851,1739094642052,-1254.33,0.00010395,2]
[352422852,1739094642062,-500.0,0.00010395,2]
[352422853,1739094642071,-500.0,0.00010395,2]
[352422854,1739094642080,-500.0,0.00010395,2]
[352422855,1739094642090,-500.0,0.00010395,2]
[352422856,1739094642099,-721.8,0.00010395,2]
[352422857,1739094642108,-500.0,0.00010395,2]
[352422858,1739094642118,-764.49,0.00010395,2]
[352422859,1739094642127,-500.0,0.00010395,2]
[352422860,1739094642136,-367.01535664,0.00010395,2]
[352422861,1739094642146,-500.0,0.00010395,2]
[352422862,1739094642155,-500.0,0.00010395,2]
[352422863,1739094642165,-500.0,0.00010395,2]
[352422864,1739094642174,-500.0,0.00010395,2]
[352422865,1739094642184,-500.0,0.00010395,2]
[352422866,1739094642193,-500.0,0.00010395,2]
[352422867,1739094642203,-519.95,0.00010395,2]
[352422868,1739094642212,-747.51,0.00010395,2]
[352422869,1739094642221,-880.02,0.00010395,2]
[352422870,1739094642230,-1518.2,0.00010395,2]
[352422871,1739094642239,-1589.59,0.00010395,2]
[352422872,1739094642249,-500.0,0.00010395,2]
[352422873,1739094642258,-500.0,0.00010395,2]
[352422874,1739094642268,-500.0,0.00010395,2]
[352422875,1739094642277,-829.57,0.00010395,2]
[352422876,1739094642286,-500.0,0.00010395,2]
[352422877,1739094642295,-500.0,0.00010395,2]
[352422878,1739094642306,-114707.29563556,0.00010396,2]
[352422879,1739094642317,-500.0,0.00010396,2]
[352422880,1739094642326,-500.0,0.00010396,2]
[352422881,1739094642335,-688.94,0.00010396,2]
[352422882,1739094642344,-500.0,0.00010396,2]
[352422883,1739094642354,-444.8405112,0.00010396,2]
[352422884,1739094642364,-500.0,0.00010396,2]
[352422885,1739094642373,-500.0,0.00010396,2]
[352422886,1739094642383,-500.0,0.00010396,2]
[352422887,1739094642392,-500.0,0.00010396,2]
[352422888,1739094642402,-500.0,0.00010396,2]
[352422889,1739094642411,-500.0,0.00010396,2]
[352422890,1739094642420,-500.0,0.00010396,2]
[352422891,1739094642429,-500.0,0.00010396,2]
[352422892,1739094642439,-500.0,0.00010396,2]
[352422893,1739094642449,-500.0,0.00010396,2]
[352422894,1739094642458,-500.0,0.00010396,2]
[352422895,1739094642469,-500.0,0.00010396,2]
[352422896,1739094642478,-500.0,0.00010396,2]
[352422897,1739094642488,-502.63562985,0.00010396,2]
[352422898,1739094642498,-504.78420718,0.00010396,2]
[352422899,1739094642508,-501.73506172,0.00010396,2]
[352422900,1739094642521,-500.0,0.00010396,2]
[352422901,1739094642541,-500.57796219,0.00010396,2]
[352422902,1739094642551,-500.0,0.00010396,2]
[352422903,1739094642560,-500.0,0.00010396,2]
[352422904,1739094642570,-498.81298779,0.00010396,2]
[352422905,1739094642583,-500.0,0.00010399,2]
[352422906,1739094642598,-500.0,0.00010399,2]
[352422907,1739094642607,-390.59699571,0.00010399,2]
[352422908,1739094642616,-169.2459,0.00010399,2]
[352422909,1739094642626,-501.72389907,0.000104,2]
[352422910,1739094642635,-500.0,0.000104,2]
[352422911,1739094642644,-504.72989289,0.000104,2]
[352422912,1739094642654,-500.0,0.000104,2]
[352422913,1739094642664,-500.0,0.000104,2]
[352422914,1739094642673,-500.0,0.000104,2]
[352422915,1739094642683,-275.20566866,0.000104,2]
[352422916,1739094642692,-500.0,0.000104,2]
[352422917,1739094642702,-500.0,0.000104,2]
[352422918,1739094642712,-533.96,0.000104,2]
[352422919,1739094642722,-500.0,0.000104,2]
[352422920,1739094642731,-617.31,0.000104,2]
[352422921,1739094642741,-500.0,0.000104,2]
[352422922,1739094642750,-501.64927883,0.000104,2]
[352422923,1739094642760,-500.0,0.000104,2]
[352422924,1739094642769,-500.0,0.000104,2]
[352422926,1739094642779,-500.0,0.000104,2]
[352422927,1739094642788,-500.0,0.000104,2]
[352422928,1739094642797,-501.71323372,0.000104,2]
[352422929,1739094642807,-500.0,0.000104,2]
[352422930,1739094642816,-370.93884154,0.000104,2]
[352422931,1739094642825,-505.63498316,0.000104,2]
[352422932,1739094642834,-501.22951178,0.000104,2]
[352422933,1739094642844,-629.28,0.000104,2]
[352422934,1739094642853,-500.0,0.000104,2]
[352422935,1739094642862,-500.0,0.000104,2]
[352422936,1739094642873,-500.0,0.000104,2]
[352422937,1739094642883,-500.0,0.000104,2]
[352422938,1739094642892,-500.0,0.000104,2]
[352422939,1739094642902,-498.49548242,0.000104,2]
[352422940,1739094642911,-500.0,0.000104,2]
[352422941,1739094642921,-557.15,0.000104,2]
[352422942,1739094642931,-500.0,0.000104,2]
[352422943,1739094642940,-500.0,0.000104,2]
[352422944,1739094642949,-500.0,0.000104,2]
[352422945,1739094642958,-500.0,0.000104,2]
[352422946,1739094642968,-500.0,0.000104,2]
[352422947,1739094642977,-500.0,0.000104,2]
[352422948,1739094642987,-500.0,0.000104,2]
[352422949,1739094642995,-500.0,0.000104,2]
[352422950,1739094643005,-500.0,0.000104,2]
[352422951,1739094643014,-500.0,0.000104,2]
[352422952,1739094643024,-509.86168543,0.000104,2]
[352422953,1739094643033,-500.0,0.000104,2]
[352422954,1739094643043,-500.0,0.000104,2]
[352422955,1739094643052,-500.0,0.000104,2]
[352422956,1739094643062,-500.0,0.000104,2]
[352422957,1739094643071,-216.50770705,0.000104,2]
[352422958,1739094643080,-635.09,0.000104,2]
[352422959,1739094643089,-500.0,0.000104,2]
[352422960,1739094643099,-500.0,0.000104,2]
[352422961,1739094643108,-500.0,0.000104,2]
[352422962,1739094643117,-500.0,0.000104,2]
[352422963,1739094643127,-633.12,0.000104,2]
[352422964,1739094643136,-500.0,0.000104,2]
[352422965,1739094643146,-500.0,0.000104,2]
[352422966,1739094643155,-554.64,0.000104,2]
[352422968,1739094643165,-500.0,0.000104,2]
[352422970,1739094643174,-840.58,0.000104,2]
[352422972,1739094643184,-500.0,0.000104,2]
[352422973,1739094643193,-500.0,0.000104,2]
[352422974,1739094643203,-500.0,0.000104,2]
[352422975,1739094643212,-500.0,0.000104,2]
[352422976,1739094643222,-500.0,0.000104,2]
[352422977,1739094643231,-609.18,0.000104,2]
[352422978,1739094643240,-700.15,0.000104,2]
[352422979,1739094643250,-549.15,0.000104,2]
[352422980,1739094643259,-500.0,0.000104,2]
[352422981,1739094643269,-686.05,0.000104,2]
[352422982,1739094643278,-500.0,0.000104,2]
[352422983,1739094643288,-561.26,0.000104,2]
[352422985,1739094643297,-651.78,0.000104,2]
[352422987,1739094643307,-500.0,0.000104,2]
[352422989,1739094643324,-500.0,0.000104,2]
[352422991,1739094643335,-500.0,0.000104,2]
[352422993,1739094643344,-931.7,0.000104,2]
[352422994,1739094643354,-504.35188877,0.000104,2]
[352422995,1739094643363,-501.5,0.000104,2]
[352422996,1739094643373,-500.0,0.000104,2]
[352422997,1739094643382,-500.0,0.000104,2]
[352422998,1739094643391,-640.53,0.000104,2]
[352422999,1739094643401,-500.0,0.000104,2]
[352423000,1739094643410,-727.13,0.000104,2]
[352423001,1739094643421,-508.30847478,0.000104,2]
[352423002,1739094643430,-561.1022212,0.000104,2]
[352423003,1739094643439,-500.0,0.000104,2]
[352423004,1739094643449,-500.0,0.000104,2]
[352423005,1739094643458,-894.81,0.000104,2]
[352423006,1739094643467,-500.0,0.000104,2]
[352423007,1739094643477,-1269.76,0.000104,2]
[352423008,1739094643486,-3993.99,0.000104,2]
[352423009,1739094643495,-794.62,0.000104,2]
[352423010,1739094643505,-1377.65,0.000104,2]
[352423011,1739094643514,-585.65,0.000104,2]
[352423012,1739094643526,-500.0,0.000104,2]
[352423013,1739094643535,-1081.57,0.000104,2]
[352423014,1739094643544,-500.0,0.000104,2]
[352423015,1739094643554,-500.0,0.000104,2]
[352423016,1739094643563,-534.39,0.000104,2]
[352423017,1739094643573,-1694.72,0.000104,2]
[352423018,1739094643583,-2112.56,0.000104,2]
[352423019,1739094643592,-1666.69,0.000104,2]
[352423020,1739094643603,-837.49,0.000104,2]
[352423021,1739094643612,-507.4,0.000104,2]
[352423022,1739094643621,-1682.68,0.000104,2]
[352423023,1739094643631,-500.0,0.000104,2]
[352423024,1739094643640,-518.08,0.000104,2]
[352423025,1739094643650,-500.0,0.000104,2]
[352423026,1739094643659,-500.0,0.000104,2]
[352423027,1739094643668,-955.98,0.000104,2]
[352423028,1739094643677,-1092.33,0.000104,2]
[352423029,1739094643687,-500.0,0.000104,2]
[352423030,1739094643696,-500.0,0.000104,2]
[352423031,1739094643719,-500.0,0.000104,2]
[352423032,1739094643730,-500.0,0.000104,2]
[352423033,1739094643740,-1064.86,0.000104,2]
[352423034,1739094643750,-500.0,0.000104,2]
[352423035,1739094643760,-1329.76,0.000104,2]
[352423036,1739094643770,-578.15,0.000104,2]
[352423037,1739094643779,-607.29,0.000104,2]
[352423038,1739094643789,-809.96,0.000104,2]
[352423039,1739094643798,-500.0,0.000104,2]
[352423040,1739094643807,-864.82,0.000104,2]
[352423041,1739094643817,-500.0,0.000104,2]
[352423042,1739094643827,-500.0,0.000104,2]
[352423043,1739094643836,-810.79,0.000104,2]
[352423044,1739094643846,-500.0,0.000104,2]
[352423045,1739094643855,-877.05,0.000104,2]
[352423046,1739094643865,-500.0,0.000104,2]
[352423047,1739094643874,-500.0,0.000104,2]
[352423048,1739094643884,-1145.16,0.000104,2]
[352423049,1739094643893,-539.49,0.000104,2]
[352423050,1739094643903,-525.96,0.000104,2]
[352423051,1739094643912,-534.83,0.000104,2]
[352423052,1739094643921,-500.0,0.000104,2]
[352423053,1739094643931,-500.0,0.000104,2]
[352423054,1739094643940,-500.0,0.000104,2]
[352423055,1739094643950,-500.0,0.00010401,2]
[352423056,1739094643959,-500.0,0.00010401,2]
[352423057,1739094643969,-500.0,0.00010401,2]
[352423058,1739094643979,-500.0,0.00010401,2]
[352423059,1739094643988,-500.0,0.00010401,2]
[352423060,1739094643998,-634.3,0.00010401,2]
[352423061,1739094644007,-500.0,0.00010401,2]
[352423062,1739094644017,-500.0,0.00010401,2]
[352423063,1739094644027,-500.0,0.00010401,2]
[352423064,1739094644036,-521.32978614,0.00010401,2]
[352423065,1739094644046,-721.88,0.00010401,2]
[352423066,1739094644056,-500.0,0.00010401,2]
[352423067,1739094644065,-500.0,0.00010401,2]
[352423068,1739094644075,-500.0,0.00010401,2]
[352423069,1739094644084,-500.0,0.00010401,2]
[352423070,1739094644094,-500.0,0.00010401,2]
[352423071,1739094644103,-500.0,0.00010401,2]
[352423072,1739094644114,-748.34,0.00010401,2]
[352423073,1739094644123,-500.0,0.00010401,2]
[352423074,1739094644132,-500.0,0.00010401,2]
[352423075,1739094644143,-500.0,0.00010401,2]
[352423076,1739094644153,-500.0,0.00010401,2]
[352423077,1739094644162,-514.61,0.00010401,2]
[352423078,1739094644172,-500.0,0.00010401,2]
[352423079,1739094644181,-500.0,0.00010401,2]
[352423080,1739094644191,-500.0,0.00010401,2]
[352423081,1739094644201,-500.0,0.00010401,2]
[352423082,1739094644211,-500.0,0.00010401,2]
[352423083,1739094644224,-670.03,0.00010401,2]
[352423084,1739094644236,-646.6,0.00010401,2]
[352423085,1739094644245,-500.0,0.00010401,2]
[352423086,1739094644256,-500.0,0.00010401,2]
[352423087,1739094644266,-288.14981046,0.00010401,2]
[352423088,1739094644276,-500.0,0.00010401,2]
[352423089,1739094644286,-500.0,0.00010401,2]
[352423090,1739094644296,-502.67,0.00010401,2]
[352423091,1739094644306,-500.0,0.00010401,2]
[352423092,1739094644317,-500.0,0.00010401,2]
[352423093,1739094644330,-500.0,0.00010401,2]
[352423094,1739094644340,-514.6,0.00010401,2]
[352423095,1739094644350,-500.0,0.00010401,2]
[352423096,1739094644359,-500.0,0.00010401,2]
[352423097,1739094644369,-500.0,0.00010401,2]
[352423098,1739094644379,-500.0,0.00010401,2]
[352423099,1739094644388,-500.0,0.00010401,2]
[352423100,1739094644398,-500.0,0.00010401,2]
[352423101,1739094644407,-500.0,0.00010401,2]
[352423102,1739094644416,-500.0,0.00010401,2]
[352423103,1739094644426,-500.0,0.00010401,2]
[352423104,1739094644435,-629.28,0.00010401,2]
[352423105,1739094644445,-513.74,0.00010401,2]
[352423106,1739094644455,-725.89,0.00010401,2]
[352423107,1739094644465,-500.0,0.00010401,2]
[352423108,1739094644474,-500.0,0.00010401,2]
[352423109,1739094644483,-500.0,0.00010401,2]
[352423110,1739094644493,-500.0,0.00010401,2]
[352423111,1739094644502,-500.0,0.00010401,2]
[352423112,1739094644512,-500.0,0.00010401,2]
[352423113,1739094644522,-500.0,0.00010401,2]
[352423114,1739094644533,-709.94,0.00010401,2]
[352423115,1739094644542,-517.19,0.00010401,2]
[352423116,1739094644552,-755.45,0.00010401,2]
[352423117,1739094644561,-1126.02,0.00010401,2]
[352423118,1739094644574,-500.0,0.00010401,2]
[352423119,1739094644584,-500.0,0.00010401,2]
[352423120,1739094644593,-500.0,0.00010401,2]
[352423121,1739094644603,-500.0,0.00010401,2]
[352423122,1739094644612,-500.0,0.00010401,2]
[352423123,1739094644622,-500.0,0.00010401,2]
[352423124,1739094644631,-505.22833877,0.00010401,2]
[352423125,1739094644641,-500.0,0.00010401,2]
[352423126,1739094644651,-500.0,0.00010401,2]
[352423127,1739094644660,-518.83,0.00010401,2]
[352423128,1739094644670,-500.0,0.00010401,2]
[352423129,1739094644679,-500.0,0.00010401,2]
[352423130,1739094644689,-500.0,0.00010401,2]
[352423131,1739094644698,-3889.77989785,0.00010401,2]
[352423132,1739094644707,-500.0,0.00010401,2]
[352423133,1739094644717,-500.0,0.00010401,2]
[352423134,1739094644727,-500.0,0.00010401,2]
[352423135,1739094644736,-500.0,0.00010401,2]
[352423136,1739094644746,-518.2,0.00010401,2]
[352423137,1739094644755,-500.0,0.00010401,2]
[352423138,1739094644764,-500.0,0.00010401,2]
[352423139,1739094644774,-500.0,0.00010401,2]
[352423140,1739094644783,-500.0,0.00010401,2]
[352423141,1739094644792,-500.0,0.00010401,2]
[352423142,1739094644802,-607.72,0.00010401,2]
[352423143,1739094644812,-500.0,0.00010401,2]
[352423144,1739094644822,-79.50164342,0.00010401,2]
[352423145,1739094644842,-420.99916783,0.00010401,2]
[352423146,1739094644852,-107.74258425,0.00010401,2]
[352423147,1739094644898,-187.27511173,0.00010395,2]
[352423148,1739094644911,-395.80675298,0.00010401,2]
[352423149,1739094644921,-500.0,0.00010401,2]
[352423150,1739094645197,-500.0,0.00010401,2]
[352423151,1739094645207,-500.0,0.00010401,2]
[352423152,1739094645217,-501.07471443,0.00010401,2]
[352423153,1739094645227,-500.0,0.00010401,2]
[352423154,1739094645236,-500.0,0.00010401,2]
[352423155,1739094645246,-500.0,0.00010401,2]
[352423156,1739094645255,-500.0,0.00010401,2]
[352423157,1739094645264,-500.0,0.00010401,2]
[352423158,1739094645273,-614.14,0.00010401,2]
[352423159,1739094645283,-500.0,0.00010401,2]
[352423160,1739094645293,-500.0,0.00010401,2]
[352423161,1739094645302,-500.0,0.00010401,2]
[352423162,1739094645312,-501.79773345,0.00010401,2]
[352423163,1739094645321,-500.0,0.00010401,2]
[352423164,1739094645331,-753.48,0.00010401,2]
[352423165,1739094645341,-502.88102574,0.00010401,2]
[352423166,1739094645350,-524.86,0.00010401,2]
[352423167,1739094645360,-500.0,0.00010401,2]
[352423168,1739094645369,-502.77109862,0.00010401,2]
[352423169,1739094645380,-882.37,0.00010401,2]
[352423170,1739094645390,-500.0,0.00010401,2]
[352423171,1739094645399,-500.0,0.00010401,2]
[352423172,1739094645408,-500.0,0.00010401,2]
[352423173,1739094645418,-500.0,0.00010401,2]
[352423174,1739094645429,-500.0,0.00010401,2]
[352423175,1739094645439,-500.0,0.00010401,2]
[352423176,1739094645448,-802.21,0.00010401,2]
[352423177,1739094645458,-630.36,0.00010401,2]
[352423178,1739094645467,-828.28,0.00010401,2]
[352423179,1739094645477,-500.0,0.00010401,2]
[352423180,1739094645486,-1013.74,0.00010401,2]
[352423181,1739094645506,-479.45457941,0.00010401,2]
[352423182,1739094646467,-447.51688198,0.00010301,2]
[352423183,1739094646477,-528.54,0.00010395,2]
[352423184,1739094646486,-20.54542059,0.00010401,2]
[352423185,1739094646495,-500.0,0.00010401,2]
[352423186,1739094646504,-775.17,0.00010411,2]
[352423187,1739094646514,-439.73,0.00010411,2]
[352423188,1739094646524,-542.55,0.00010442,2]
[352423189,1739094646535,-80000.0,0.0001048,2]
[352423190,1739094646543,-500.59425366,0.00010532,2]
[352423191,1739094646554,-500.0,0.00010532,2]
[352423192,1739094646563,-500.0,0.00010532,2]
[352423193,1739094646572,-500.0,0.00010532,2]
[352423194,1739094646582,-491.3,0.00010532,2]
[352423195,1739094646591,-500.0,0.00010532,2]
[352423196,1739094646600,-770.84,0.00010532,2]
[352423197,1739094646609,-500.0,0.00010532,2]
[352423198,1739094646619,-500.0,0.00010532,2]
[352423199,1739094646628,-500.0,0.00010532,2]
[352423200,1739094646638,-500.0,0.00010532,2]
[352423201,1739094646647,-500.0,0.00010532,2]
[352423202,1739094646657,-500.0,0.00010532,2]
[352423203,1739094646667,-500.0,0.00010532,2]
[352423204,1739094646676,-500.0,0.00010532,2]
[352423205,1739094646685,-502.14962334,0.00010532,2]